Cogmind - Beta 13 X1 @@@ ROGUE MODE // 2023.07.22 @ 19:02:34 Player: Cracklepappy Result: Heading to fleet! Performance ------------- Evolutions (9) 4500 Regions Visited (29) 5800 Robots Destroyed (181) 905 Value Destroyed (5771) 5771 Prototype IDs (87) 1740 Alien Tech Used (11) 2200 Bonus (23526) 23526 TOTAL SCORE: 44442 Bonus ------- High Alert Combat Kills 286 Follower Combat Kills 1480 Entered Garrisons 200 Aligned with FarCom 300 Met Zhirov 300 Met Warlord at Base 500 MAIN.C Attacked Warlord 500 Warlord Defense Kills 108 Used Core Reset Matrix 3000 Met Warlord at Research 2000 Destroyed MAIN.C Guards 500 Met MAIN.C 5000 Destroyed MAIN.C Shell 5000 Met Warlord at Command 2000 Win 3000 Friendly Fire -648 Cogmind --------- Core Integrity 863/1600 Matter 357/425 Energy 256/1600 System Corruption 12% Temperature Cool (3) Movement Flying (30) Location To Fleet Rendezvous Parts ------- > --- POWER (4) -------- (None) > --- PROPULSION (9) --- Improved Diametric Drive Improved Q-thruster Improved Q-thruster > --- UTILITY (8) ------ Superbattery Improved Targeting Computer Advanced Target Analyzer Experimental Force Field > --- WEAPON (4) ------- (None) > --- INVENTORY (5) ---- Scrap Engine High-powered Transdimensional Reconstructor Cooled Nova Cannon Peak State ------------ > --- POWER ------------ Micro Nuclear Core Micro Nuclear Core Light Antimatter Reactor Micro Antimatter Reactor > --- PROPULSION ------- Improved Diametric Drive Improved Diametric Drive Flightbrick Improved Q-thruster Improved Q-thruster Improved Q-thruster > --- UTILITY ---------- 2N-1CE's Frost Array Medium Storage Unit Improved Targeting Computer Advanced Force Booster Advanced Transmission Jammer Advanced Cloaking Device Advanced Hacking Suite System Mapper Advanced System Shield > --- WEAPON ----------- Cooled Nova Cannon Field Lobotomy Kit Sigix Broadsword > --- INVENTORY -------- Scrap Engine Superbattery Experimental Force Field High-powered Transdimensional Reconstructor Integrity Redistributor Gamma Rifle Advanced Remote Datajack Vortex Lance Vortex Lance [Rating: 226] Favorites ----------- Power Micro Nuclear Core Engine Cooled Ion Engine Power Core Micro Nuclear Core Reactor Micro Antimatter Reactor Propulsion Light Treads Treads Light Treads Leg Aluminum Leg Wheel Wheel Flight Unit Improved Diametric Drive Utility Medium Storage Unit Device Experimental Sensor Array Storage Medium Storage Unit Processor Improved Signal Interpreter Hackware Hacking Suite Protection Scrap Shield Weapon Beam Cannon Energy Gun Heavy Quantum Rifle Energy Cannon Beam Cannon Ballistic Gun Heavy Assault Rifle Ballistic Cannon Slug Cannon Launcher Grenade Launcher Special Weapon Advanced Remote Datajack Impact Weapon Maul Slashing Weapon Katana Piercing Weapon Lance Build | -11 -10 -10 -9 -9 -9 -8 -8 -8 -8 -7 -7 -7 -5 -5 -5 -5 -4 -4 -4 -4 -4 -3 -3 -3 -2 -2 -2 -1 -1 ------- Run | Jun Mat Sub Mat Min Exi Min Mat Gar Mat Fac Sto Rec Fac Upp Upp War Pro Fac Upp Upp Zhi Pro Res Tes Res Qua Sec Acc Com Slots Evolved 18 | . . . 2 . . . 2 . . 2 . . 4 . . . . 2 . . . . 2 . 2 . . 2 . Power 3 | . . . . . . . . . . 1 . . 1 . . . . . . . . . . . 1 . . . . Propulsion 7 | . . . 1 . . . 1 . . 1 . . 2 . . . . . . . . . 1 . 1 . . . . Utility 6 | . . . 1 . . . 1 . . . . . 1 . . . . 2 . . . . 1 . . . . . . Weapon 2 | . . . . . . . . . . . . . . . . . . . . . . . . . . . . 2 . Parts Attached 380 | 9 12 25 40 2 8 7 24 23 8 14 2 9 22 3 7 20 7 13 4 1 7 1 10 12 11 7 6 22 44 Power 26 | 1 2 1 2 . 1 . 3 2 . 3 . . 3 . . . . 1 . . 2 1 2 . 1 1 . . . Engine 13 | 1 2 1 2 . 1 . 2 2 . 2 . . . . . . . . . . . . . . . . . . . Core 9 | . . . . . . . 1 . . 1 . . 3 . . . . 1 . . 1 . 1 . 1 . . . . Reactor 4 | . . . . . . . . . . . . . . . . . . . . . 1 1 1 . . 1 . . . Propulsion 56 | 3 1 4 7 . 1 2 9 8 . 1 . . 5 . . 2 . . . . . . 3 1 5 . . 4 . Treads 31 | 2 1 4 7 . 1 2 8 6 . . . . . . . . . . . . . . . . . . . . . Leg 2 | . . . . . . . 1 1 . . . . . . . . . . . . . . . . . . . . . Wheel 1 | 1 . . . . . . . . . . . . . . . . . . . . . . . . . . . . . Hover . | . . . . . . . . . . . . . . . . . . . . . . . . . . . . . . Flight 22 | . . . . . . . . 1 . 1 . . 5 . . 2 . . . . . . 3 1 5 . . 4 . Utility 141 | 2 6 3 10 . 2 2 7 6 6 3 1 1 7 . 1 12 1 9 . 1 4 . 2 5 5 3 4 13 25 Device 86 | 1 1 . 3 . . 1 1 2 3 2 1 1 5 . 1 10 1 6 . 1 2 . . 4 3 2 3 12 20 Storage 12 | 1 3 1 1 . . . 2 1 . . . . . . . . . 1 . . 1 . . . . . . . 1 Processor 14 | . . . . . . . . 2 2 . . . 1 . . 2 . 1 . . . . 1 1 . . . 1 3 Hackware 9 | . . . . . . . . . 1 1 . . 1 . . . . 1 . . . . 1 . 2 1 1 . . Protection 20 | . 2 2 6 . 2 1 4 1 . . . . . . . . . . . . 1 . . . . . . . 1 Artifact . | . . . . . . . . . . . . . . . . . . . . . . . . . . . . . . Weapon 157 | 3 3 17 21 2 4 3 5 7 2 7 1 8 7 3 6 6 6 3 4 . 1 . 3 6 . 3 2 5 19 Energy Gun 15 | 2 . . . . . . 1 5 . . . . . . . . . . . . . . . 3 . . . . 4 Energy Cannon 63 | . 2 9 14 . 1 . . . . 4 . 3 3 . 3 1 3 1 4 . . . 2 2 . 1 1 5 4 Ballistic Gun 23 | 1 1 3 2 2 3 2 4 . 1 3 . . 1 . . . . . . . . . . . . . . . . Ballistic Cannon 3 | . . 3 . . . . . . . . . . . . . . . . . . . . . . . . . . . Launcher 14 | . . 2 5 . . 1 . . . . . 1 . 2 . 1 . . . . . . 1 . . . . . 1 Special Weapon 8 | . . . . . . . . . . . . . . . . 1 . . . . . . . . . . . . 7 Impact Weapon 18 | . . . . . . . . 2 . . 1 4 2 1 3 2 2 1 . . . . . . . . . . . Slashing Weapon 7 | . . . . . . . . . 1 . . . 1 . . 1 1 . . . . . . . . 2 1 . . Piercing Weapon 6 | . . . . . . . . . . . . . . . . . . 1 . . 1 . . 1 . . . . 3 Special Melee Weapon . | . . . . . . . . . . . . . . . . . . . . . . . . . . . . . . Unidentified Prototypes 30 | . 1 . 2 . . . 3 . . . . 1 1 . . 6 . 1 . 1 5 . . 5 1 1 . . 2 Corrupted Parts 1 | . . . . . . . . . . . . . . . . . . . . . . . . . . . . . 1 System Corruption 3 | . . . . . . . . . . . . . . . . . . . . . . . . . . . . . 3 Parts Lost 55 | . 4 3 3 . 5 4 . 11 . 4 . . . . . . . . . . . . . . . 1 1 . 19 Power 8 | . 1 . . . 1 . . 1 . 1 . . . . . . . . . . . . . . . . . . 4 Propulsion 15 | . 1 2 1 . 1 1 . 6 . . . . . . . . . . . . . . . . . . . . 3 Utility 25 | . 1 1 2 . 3 1 . 4 . 3 . . . . . . . . . . . . . . . 1 1 . 8 Weapon 7 | . 1 . . . . 2 . . . . . . . . . . . . . . . . . . . . . . 4 Highest Loss Streak 10 | . 2 2 2 . 3 4 . 8 . 4 . . . . . . . . . . . . . . . 1 1 . 10 To Critical Strikes 3 | . . . . . 2 . . 1 . . . . . . . . . . . . . . . . . . . . . Average Slot Usage (%) 86 | . 99 86 97 99 79 83 98 76 73 79 78 78 76 83 83 82 83 80 81 80 79 80 77 85 82 84 81 78 79 Engine 7 | . 14 14 11 11 11 11 5 7 7 12 7 7 3 . . . . . . . . . . . . . . . . Core 3 | . . . . . . . 3 . . . 7 7 8 16 16 16 16 14 15 15 15 11 9 9 10 9 8 7 6 Reactor 1 | . . . . . . . . . . . . . . . . . . . . . . 4 4 4 4 6 8 7 6 Treads 18 | . 28 27 32 33 33 32 35 25 . . . . . . . . . . . . . . . . . . . . . Flight 7 | . . . . . . . . . 7 12 14 14 21 22 22 22 22 20 20 20 20 20 18 22 21 25 25 23 22 Device 8 | . 3 . 7 11 9 . 8 5 7 6 14 14 10 11 11 14 16 20 25 25 23 25 20 17 16 13 11 13 13 Storage 6 | . 19 2 12 11 11 11 9 8 7 6 7 7 5 5 5 5 5 5 5 5 5 5 4 4 4 4 4 3 3 Processor 2 | . . . . . . . . 5 26 17 7 7 5 5 5 5 5 5 5 5 5 5 5 9 5 4 4 3 6 Hackware 3 | . . . . . . . . . 3 10 7 7 9 11 11 6 5 5 5 5 5 5 8 9 10 14 14 11 8 Protection 7 | . 4 13 10 11 11 7 17 7 . . . . . . . . . . . . . . . . . . . . . Energy Cannon 10 | . 14 27 19 6 . . . . . . . 1 . . . . 1 . 1 . . . . . . . . 2 . Ballistic Gun 3 | . 11 . 2 15 2 22 18 3 6 4 . . . . . . . . . . . . . . . . . . . Slashing Weapon 1 | . . . . . . . . . 7 6 7 7 5 5 5 5 4 4 . . . . . . . 2 4 3 2 Naked Turns . | . . . . . . . . . . . . . . . . . . . . . . . . . . . . . . Heaviest Build 117 | 14 37 37 117 104 109 95 100 100 24 34 28 33 35 40 40 51 44 43 51 41 41 43 46 45 57 57 54 71 77 Greatest Support 84 | 40 40 40 66 66 66 64 84 84 24 29 29 29 42 40 40 43 43 43 43 43 43 43 54 53 66 65 75 75 75 Greatest Overweight (x) 29 | . . 1 2 1 1 1 1 29 . 1 . 1 . . . 1 1 . 1 . . . . . 1 . . 1 1 Average Overweight (x) . | . . . . 1 1 1 1 1 . . . . . . . . . . . . . . . . . . . . . Largest Inventory Capacity 25 | 8 15 15 25 25 25 25 25 25 10 10 10 10 10 10 10 10 10 10 10 10 10 10 10 10 10 10 10 10 10 Average Capacity 13 | 7 14 6 24 25 25 25 25 23 10 10 10 10 10 10 10 10 10 10 10 10 10 10 10 10 10 10 10 10 9 Most Carried 25 | 8 15 15 25 25 25 25 25 25 10 10 10 10 10 10 10 10 10 10 10 10 10 10 10 10 10 10 10 10 10 Average Carried 12 | 5 13 6 21 24 22 21 24 23 9 9 9 9 9 10 9 9 9 9 9 10 9 10 9 9 9 9 9 9 9 Final Capacity 25 | 8 15 15 25 25 25 25 25 10 10 10 10 10 10 10 10 10 10 10 10 10 10 10 10 10 10 10 10 10 5 Final Carried 25 | 8 15 15 25 25 25 23 25 9 10 10 10 10 10 10 10 10 10 10 10 10 10 10 10 10 10 10 10 10 4 Class Distribution -------------------- 54% | Mutant 13% | Scavenger-Mutant 8% | Hacker-Sprinter 7% | Alien-Sprinter 3% | Sprinter 3% | Hacker-Ninja Dominant Class ---------------- Mutant | -10/Materials Mutant | -10/Subcaves Mutant | -9/Materials Mutant | -9/Mines Mutant | -9/Exiles Mutant | -8/Mines Scavenger-Mutant | -8/Materials Scavenger-Mutant | -8/Garrison Scavenger-Mutant | -8/Materials Hacker-Mutant | -7/Factory Mutant | -7/Storage Mutant | -7/Recycling Hacker-Sprinter | -5/Factory Hacker-Sprinter | -5/Upper Caves Hacker-Sprinter | -5/Upper Caves Sprinter | -5/Warlord Sprinter | -4/Proximity Caves Sprinter | -4/Factory Infiltrator-Sprinter | -4/Upper Caves Infiltrator-Sprinter | -4/Upper Caves Infiltrator-Sprinter | -4/Zhirov Infiltrator-Sprinter | -3/Proximity Caves Hacker-Sprinter | -3/Research Hacker-Ninja | -3/Testing Hacker-Sprinter | -2/Research Hacker-Sprinter | -2/Quarantine Hacker-Sprinter | -2/Section 7 Alien-Sprinter | -1/Access Alien-Sprinter | -1/Command Resources | -11 -10 -10 -9 -9 -9 -8 -8 -8 -8 -7 -7 -7 -5 -5 -5 -5 -4 -4 -4 -4 -4 -3 -3 -3 -2 -2 -2 -1 -1 ----------- Run | Jun Mat Sub Mat Min Exi Min Mat Gar Mat Fac Sto Rec Fac Upp Upp War Pro Fac Upp Upp Zhi Pro Res Tes Res Qua Sec Acc Com Matter Collected 6252 | 320 486 516 596 41 71 285 860 249 60 . 50 237 158 38 32 366 . 366 199 . 206 25 90 121 164 90 55 264 307 Remotely 349 | . . . 34 . . 69 . . 9 . . 237 . . . . . . . . . . . . . . . . . Salvage Created 7972 | 174 534 649 1632 34 71 215 892 739 75 42 . 215 143 13 . . . 193 194 . 329 118 144 66 219 101 171 178 831 Parts 404 | 9 41 31 86 7 1 20 45 27 5 1 . 7 4 1 . . . 4 1 . 4 7 8 7 7 11 6 15 49 Haulers Intercepted 13 | . 2 . 6 . . . 1 . . . . . 1 . . . . 1 . . . . . . 2 . . . . Recyclers Shooed 4 | 1 . . . . . . 2 . . . . . . . . . . . . . . . . . . . . . 1 Parts Field Recycled . | . . . . . . . . . . . . . . . . . . . . . . . . . . . . . . Retrieved Matter . | . . . . . . . . . . . . . . . . . . . . . . . . . . . . . . Parts Self-Destructed 22 | . . 13 . . . . . . . . . . . 1 . . . . 1 . 3 4 . . . . . . . Prevented 1 | . . . . . . . . . . . . . . 1 . . . . . . . . . . . . . . . Kills | -11 -10 -10 -9 -9 -9 -8 -8 -8 -8 -7 -7 -7 -5 -5 -5 -5 -4 -4 -4 -4 -4 -3 -3 -3 -2 -2 -2 -1 -1 ------- Run | Jun Mat Sub Mat Min Exi Min Mat Gar Mat Fac Sto Rec Fac Upp Upp War Pro Fac Upp Upp Zhi Pro Res Tes Res Qua Sec Acc Com Combat Hostiles Destroyed 120 | . 12 15 28 3 1 5 12 19 1 1 . . . 1 . 2 . . . . . 1 2 . . 2 . 1 14 Melee 17 | . . . . . 1 . . . 1 1 . . . . . . . . . . . 1 . . . 2 . 1 10 Guns 44 | . 10 . 1 . . 3 12 18 . . . . . . . . . . . . . . . . . . . . . Cannons 29 | . 2 11 13 3 . . . . . . . . . . . . . . . . . . . . . . . . . AOE 29 | . . 4 14 . . 2 . . . . . . . 1 . 2 . . . . . . 2 . . . . . 4 Classes Destroyed 20 | 2 4 3 3 . . 2 3 1 . 1 . . . . . . . . . . . 1 . . . . . . . Worker 5 | . . . 2 . . . 1 . . . . . . . . . . . . . . . . . . . . . 2 Builder 1 | . . . . . . 1 . . . . . . . . . . . . . . . . . . . . . . . Tunneler 5 | 4 . . . . . 1 . . . . . . . . . . . . . . . . . . . . . . . Hauler 13 | . 2 . 6 . . . 1 . . . . . 1 . . . . 1 . . . . . . 2 . . . . Recycler 12 | 1 . . 5 . . 1 4 . . . . . . . . . . . . . . . . . . . 1 . . Mechanic 1 | . . . . . . . 1 . . . . . . . . . . . . . . . . . . . . . . Operator 8 | . . . . . . . 1 . 1 . . . . . . . . . . . . . 2 . 1 1 . 2 . Turret 1 | . . 1 . . . . . . . . . . . . . . . . . . . . . . . . . . . Watcher 20 | . 2 . 4 . . . 1 . . . . . 1 . . . . 2 . . . . 1 2 . . 2 2 3 Swarmer 36 | . 3 5 7 3 . 2 3 . . . . . . 1 . 2 . . . . . . 2 . . 2 . 1 5 Grunt 29 | . 9 . 10 . . 2 3 5 . . . . . . . . . . . . . . . . . . . . . Brawler 2 | . . . 2 . . . . . . . . . . . . . . . . . . . . . . . . . . Duelist 3 | . . . . . . 1 . 2 . . . . . . . . . . . . . . . . . . . . . Protector 1 | . . . 1 . . . . . . . . . . . . . . . . . . . . . . . . . . Sentry 20 | . . 1 8 . . . 5 5 1 . . . . . . . . . . . . . . . . . . . . Hunter 3 | . . . . . . . 1 1 . . . . . . . . . . . . . . . . . . . . 1 Programmer 11 | . . . . . . . . . . 1 . . . . . . . . . . . 1 . . . . . . 9 Subdweller 9 | . . 9 . . . . . . . . . . . . . . . . . . . . . . . . . . . Samaritan 1 | . . . . . . . . . . . . . . . . . . . . . . 1 . . . . . . . Assembled 6 | . . . . . . . . 6 . . . . . . . . . . . . . . . . . . . . . Best Kill Streak 9 | 2 6 5 8 3 1 5 5 9 1 1 . . 1 1 . 2 . 1 . . . 1 2 1 2 2 2 2 5 Combat Bots Only 9 | . 3 4 5 3 1 2 4 9 1 1 . . . 1 . 2 . . . . . 1 2 . . 1 . 1 4 Max Kills in Single Turn 4 | 1 1 4 3 2 1 2 2 1 1 1 . . 1 1 . 2 . 1 . . . 1 1 1 1 1 1 1 3 Gunslinging . | . . . . . . . . . . . . . . . . . . . . . . . . . . . . . . Exploded 4 | . . 4 3 . . 2 . . . . . . . 1 . 2 . . . . . . 1 . . . . . 2 Melee 1 | . . . . . 1 . . . 1 1 . . . . . . . . . . . 1 . . . 1 . 1 1 Uniques/NPCs Destroyed 1 | . . . . . 1 . . . . . . . . . . . . . . . . . . . . . . . . 8R-AWN (-9/Exiles) Combat | -11 -10 -10 -9 -9 -9 -8 -8 -8 -8 -7 -7 -7 -5 -5 -5 -5 -4 -4 -4 -4 -4 -3 -3 -3 -2 -2 -2 -1 -1 -------- Run | Jun Mat Sub Mat Min Exi Min Mat Gar Mat Fac Sto Rec Fac Upp Upp War Pro Fac Upp Upp Zhi Pro Res Tes Res Qua Sec Acc Com Damage Taken 15818 | . 527 1213 891 38 1031 669 379 2437 95 646 309 . 81 . 95 193 92 191 . . . 128 91 . . 135 352 573 5652 Core 1669 | . 82 98 101 . 97 100 35 450 34 108 44 . . . . 42 . . . . . 15 20 . . . . 66 377 Absorbed by Shields 979 | . . . . . . . 152 167 . . 52 . . . . 64 . 69 . . . 46 . . . . . . 429 Redirected to Shielding 44 | . . . . . . . 11 33 . . . . . . . . . . . . . . . . . . . . . Ignored by Resistances 517 | . . . . . . . . . . . . . . . . . . . . . . . . . . . 12 45 460 Regen/Repaired (Parts) 4947 | . . . 87 . . . 311 . . . . . 18 . . . . 33 . . . . . . . . 1749 409 2340 Core Remaining (%) 66 | 100 . 28 . . . 25 . . 5 . . 78 . . . . 95 . . . . 98 . 98 . . 80 . 53 Volleys Fired 571 | 30 59 109 80 5 38 22 72 22 . 21 . 12 1 1 11 9 17 4 21 . . . 5 3 4 2 1 4 18 Largest 2 | 2 2 2 2 2 2 2 2 2 . 1 . 1 1 1 1 1 1 1 1 . . . 1 1 1 1 1 1 1 Hottest 160 | 60 120 120 136 136 91 46 50 160 . 65 . 65 65 43 90 90 90 90 90 . . . 90 80 80 80 50 110 75 Shots Fired 965 | 60 117 166 149 9 75 43 144 70 . 21 . 11 1 1 11 9 17 4 20 . . . 5 3 4 2 1 4 18 Gun 533 | 60 97 17 24 2 66 41 144 70 . . . . . . . . . . . . . . . 3 4 1 . . 4 Cannon 389 | . 20 143 114 7 9 . . . . 21 . 11 1 . 11 1 17 4 20 . . . 2 . . 1 1 4 2 Launcher 31 | . . 6 11 . . 2 . . . . . . . 1 . 3 . . . . . . 3 . . . . . 5 Special 12 | . . . . . . . . . . . . . . . . 5 . . . . . . . . . . . . 7 Kinetic 443 | 30 86 34 24 2 66 41 144 16 . . . . . . . . . . . . . . . . . . . . . Thermal 474 | 30 31 126 114 7 9 . . 54 . 21 . 11 1 . 11 1 17 4 20 . . . 2 3 4 2 1 3 2 Explosive 31 | . . 6 11 . . 2 . . . . . . . 1 . 3 . . . . . . 3 . . . . . 5 Electromagnetic 5 | . . . . . . . . . . . . . . . . . . . . . . . . . . . . 1 4 Robot Hit Streak 29 | 17 19 25 29 2 9 7 11 19 . . . . . . . 9 . . . . . . 2 . . . . . 7 Robot Miss Streak 5 | 2 2 1 4 2 1 5 4 4 . . . . . . . . . . . . . . 1 . . . . 1 3 Penetration Max . | . . . . . . . . . . . . . . . . . . . . . . . . . . . . . . Secondary Targets 5 | . 1 . . . . 2 1 1 . . . . . . . . . . . . . . . . . . . . . Max Gunslinging Chain 1 | . 1 . . . . 1 1 1 . . . . . . . . . . . . . . . . . . . . . Autonomous 26 | . . . . . . . . 26 . . . . . . . . . . . . . . . . . . . . . Shots Hit Robots 715 | 46 80 95 108 3 63 26 91 62 3 5 . 4 4 . . 5 . 14 4 . 6 4 7 4 7 3 4 7 60 Core Hits 315 | 8 34 32 68 3 12 14 39 37 2 1 . 3 3 1 . 2 . 4 1 . 4 3 8 1 3 3 1 4 24 Critical Kills 1 | . . . . . . . . . . . . . 1 . . . . . . . . . . . . . . . . Critical Parts Destroyed 3 | . . . . . 1 1 1 . . . . . . . . . . . . . . . . . . . . . . Critical Strikes 16 | . . . . . 1 1 1 . . 1 . . 1 . . . . 1 . . . 1 2 1 1 1 . . 4 Destroy 3 | . . . . . 1 1 1 . . . . . . . . . . . . . . . . . . . . . . Corrupt 1 | . . . . . . . . . . . . . . . . . . . . . . . . . . . . . 1 Smash 1 | . . . . . . . . . . . . . 1 . . . . . . . . . . . . . . . . Sever 5 | . . . . . . . . . . 1 . . . . . . . 1 . . . . . . . . . . 3 Impale 6 | . . . . . . . . . . . . . . . . . . . . . . 1 2 1 1 1 . . . Melee Attacks 372 | . . . . . . . . 3 13 26 13 11 17 3 4 51 2 21 4 1 6 6 17 19 18 18 17 21 81 Impact 59 | . . . . . . . . 3 . . 11 1 5 . . 36 1 2 . . . . . . . . . . . Slashing 205 | . . . . . . . . . 13 26 2 10 12 3 4 15 1 18 . . . . . . . 9 17 21 54 Piercing 81 | . . . . . . . . . . . . . . . . . . 1 4 1 6 6 17 19 18 9 . . . Entropic 27 | . . . . . . . . . . . . . . . . . . . . . . . . . . . . . 27 Sneak Attacks 13 | . . . . . . . . . 1 . . . 1 . . . . 3 . . . 1 . . 2 . 2 1 2 Combat Hostiles 2 | . . . . . . . . . 1 . . . . . . . . . . . . . . . . . . . 1 Follow-up Attacks 6 | . . . . . . . . . . . . . 1 . . . . 2 . . . . . . . . . . 3 Damage Inflicted 22213 | 439 794 1782 3008 82 996 613 1504 1494 151 165 . 273 172 83 . 245 . 566 268 . 468 212 601 260 380 283 567 814 5993 Guns 5452 | 439 566 . 246 . 804 370 1497 1494 . . . . . . . . . . . . . . . . . . . . 36 Cannons 3603 | . 228 1577 1555 81 162 . . . . . . . . . . . . . . . . . . . . . . . . Explosions 3120 | . . 205 1207 . . 243 . . . . . . . 83 . 245 . . . . . . 349 . . . . . 788 Melee 10000 | . . . . . . . . . 151 165 . 273 172 . . . . 566 268 . 468 212 252 260 380 283 567 814 5169 Ramming 38 | . . . . 1 30 . 7 . . . . . . . . . . . . . . . . . . . . . . Kinetic 3802 | 175 480 . 246 . 804 370 1497 230 . . . . . . . . . . . . . . . . . . . . . Thermal 5217 | 264 314 1577 1555 81 162 . . 1264 . . . . . . . . . . . . . . . . . . . . . Explosive 3120 | . . 205 1207 . . 243 . . . . . . . 83 . 245 . . . . . . 349 . . . . . 788 Electromagnetic 36 | . . . . . . . . . . . . . . . . . . . . . . . . . . . . . 36 Impact 82 | . . . . . . . . . . . . . 40 . . . . 42 . . . . . . . . . . . Slashing 5878 | . . . . . . . . . 151 165 . 273 132 . . . . 524 . . . . . . . 237 567 814 3015 Piercing 1886 | . . . . . . . . . . . . . . . . . . . 268 . 468 212 252 260 380 46 . . . Entropic 2154 | . . . . . . . . . . . . . . . . . . . . . . . . . . . . . 2154 Highest Corruption 12 | . . . 5 5 5 5 . . . 11 11 9 . . . . . 2 2 2 2 4 . . . . 1 1 12 Average Corruption 4 | . . . 5 5 5 5 . . . 11 9 7 . . . . . 1 2 2 2 3 . . . . 1 1 3 Corruption Purged 11 | . . . . . . . . . . . 2 2 . . . . . . . . . . . . . . . . 7 Corruption Blocked 4 | . . . . . . . . . . . . . . . . 1 . . . . . . . . 1 . . . 2 Effects 116 | . . . 18 9 32 4 . . . 2 7 11 . . . . . 3 3 2 2 5 . . . . . 1 17 Message Errors 25 | . . . 7 . 6 1 . . . . 1 3 . . . . . 1 . . . 2 . . . . . . 4 Matter Fused 27 | . . . 3 2 7 1 . . . 1 1 3 . . . . . . 1 1 1 . . . . . . . 6 Heat Flow Errors 18 | . . . 2 3 4 . . . . 1 2 2 . . . . . . . 1 . . . . . . . . 3 Energy Discharges 11 | . . . 2 1 4 . . . . . . . . . . . . . . . 1 2 . . . . . . 1 Parts Fused 2 | . . . . . 1 . . . . . . . . . . . . . . . . 1 . . . . . . . Data Loss (minor) 14 | . . . . . 7 1 . . . . 1 1 . . . . . 1 1 . . . . . . . . . 2 Data Loss (major) 7 | . . . 1 1 2 . . . . . 1 . . . . . . . . . . . . . . . . 1 1 Misfires 2 | . . . 1 . . 1 . . . . . . . . . . . . . . . . . . . . . . . Alerts 5 | . . . 1 2 . . . . . . . 1 . . . . . 1 . . . . . . . . . . . Misdirections 1 | . . . . . . . . . . . 1 . . . . . . . . . . . . . . . . . . Weapon Failures 4 | . . . 1 . 1 . . . . . . 1 . . . . . . 1 . . . . . . . . . . Overload Shots . | . . . . . . . . . . . . . . . . . . . . . . . . . . . . . . Overflow Damage 2045 | . . 38 24 . . 3 . . 13 . . 41 . . . 92 . 34 75 . 107 . 15 92 2 . 270 186 1053 Projectiles 31 | . . 8 23 . . . . . . . . . . . . . . . . . . . . . . . . . . Explosions 133 | . . 30 1 . . 3 . . . . . . . . . 92 . . . . . . . . . . . . 7 Melee 1881 | . . . . . . . . . 13 . . 41 . . . . . 34 75 . 107 . 15 92 2 . 270 186 1046 Knockbacks . | . . . . . . . . . . . . . . . . . . . . . . . . . . . . . . Impact . | . . . . . . . . . . . . . . . . . . . . . . . . . . . . . . Kinetic . | . . . . . . . . . . . . . . . . . . . . . . . . . . . . . . Secondary . | . . . . . . . . . . . . . . . . . . . . . . . . . . . . . . Self-Inflicted Damage 161 | . . 24 36 . . 96 . . . . . . . . . 5 . . . . . . . . . . . . . Shots 6 | . . 1 2 . . 2 . . . . . . . . . 1 . . . . . . . . . . . . . Rammed 6 | . . . . 1 4 . 1 . . . . . . . . . . . . . . . . . . . . . . Targets Rammed 7 | . . . . 1 5 . 1 . . . . . . . . . . . . . . . . . . . . . . Kicked . | . . . . . . . . . . . . . . . . . . . . . . . . . . . . . . Crushed 1 | . . . . . 1 . . . . . . . . . . . . . . . . . . . . . . . . Highest Temperature 356 | 80 163 39 234 230 356 12 24 264 . 196 246 191 342 123 246 15 84 24 30 123 . . . . 325 . . . 144 Average Temperature 68 | 31 47 18 67 78 151 7 7 67 . 87 144 70 93 32 117 15 36 13 12 64 . . . . 120 . . . 100 Received Heat Transfer 2670 | . 231 108 294 . . 36 114 1452 54 99 107 . 18 . 30 30 9 . . . . . . . . . 18 . 70 Effects 10 | . . . . . 1 . . . . . 4 . 1 . 1 . . . . . . . . . 3 . . . . Shutdowns 2 | . . . . . 1 . . . . . . . . . . . . . . . . . . . 1 . . . . Energy Bleed 1 | . . . . . . . . . . . . . 1 . . . . . . . . . . . . . . . . Interference 7 | . . . . . . . . . . . 4 . . . 1 . . . . . . . . . 2 . . . . Siege Activations . | . . . . . . . . . . . . . . . . . . . . . . . . . . . . . . Robots Corrupted . | . . . . . . . . . . . . . . . . . . . . . . . . . . . . . . Combat Hostiles . | . . . . . . . . . . . . . . . . . . . . . . . . . . . . . . Parts Fried 2 | . . . . . . . . . . . . . . . . . . 2 . . . . . . . . . . . Impact Corruptions 1 | . . . . . . . . . . . . . . . . . . 1 . . . . . . . . . . . Robots Melted 1 | . . . . . . . . 1 . . . . . . . . . . . . . . . . . . . . . Combat Hostiles 1 | . . . . . . . . 1 . . . . . . . . . . . . . . . . . . . . . Parts Melted 17 | 1 2 3 9 . . . . 2 . . . . . . . . . . . . . . . . . . . . . Heat Transferred 9994 | 600 740 3330 3108 148 72 . . 1996 . . . . . . . . . . . . . . . . . . . . . Parts Sabotaged . | . . . . . . . . . . . . . . . . . . . . . . . . . . . . . . Parts Stolen . | . . . . . . . . . . . . . . . . . . . . . . . . . . . . . . Parts Stripped . | . . . . . . . . . . . . . . . . . . . . . . . . . . . . . . Power Chain Reactions . | . . . . . . . . . . . . . . . . . . . . . . . . . . . . . . Missiles Intercepted . | . . . . . . . . . . . . . . . . . . . . . . . . . . . . . . Alert | -11 -10 -10 -9 -9 -9 -8 -8 -8 -8 -7 -7 -7 -5 -5 -5 -5 -4 -4 -4 -4 -4 -3 -3 -3 -2 -2 -2 -1 -1 ------- Run | Jun Mat Sub Mat Min Exi Min Mat Gar Mat Fac Sto Rec Fac Upp Upp War Pro Fac Upp Upp Zhi Pro Res Tes Res Qua Sec Acc Com Peak Influence 721 | 25 172 . 557 287 . 122 231 401 499 450 219 205 477 . . . . 156 . . . . 192 256 243 240 195 578 721 Initial 261 | . 16 . . 217 . . 47 70 185 226 36 85 261 . . . . 28 . . . . 40 93 56 136 84 116 174 Average 185 | 10 43 . 223 274 . 100 85 187 355 278 118 48 317 . . . . 71 . . . . 101 165 173 157 81 319 427 Maximum Alert Level 3 | . . . 2 1 . . 1 2 2 2 1 1 2 . . . . . . . . . . 1 1 1 . 2 3 Low Security (%) 61 | 100 100 . 53 2 . 100 91 75 . 14 78 99 5 . . . . 100 . . . . 100 67 70 80 100 23 9 Level 1 26 | . . . 26 97 . . 8 22 47 77 21 . 82 . . . . . . . . . . 32 29 19 . 45 40 Level 2 9 | . . . 19 . . . . 1 52 7 . . 12 . . . . . . . . . . . . . . 30 25 Level 3 2 | . . . . . . . . . . . . . . . . . . . . . . . . . . . . . 24 Level 4 . | . . . . . . . . . . . . . . . . . . . . . . . . . . . . . . Level 5 . | . . . . . . . . . . . . . . . . . . . . . . . . . . . . . . High Security . | . . . . . . . . . . . . . . . . . . . . . . . . . . . . . . Max Security . | . . . . . . . . . . . . . . . . . . . . . . . . . . . . . . Squads Dispatched 31 | . 2 . 2 . . . 1 . 2 2 3 . 2 . . . . 3 . . . . 1 . 2 1 4 . 6 Investigation 5 | . 1 . . . . . . . . . . . 1 . . . . . . . . . . . . . 1 . 2 Extermination 7 | . . . . . . . . . . 1 . . . . . . . 1 . . . . 1 . . 1 . . 3 Reinforcement 16 | . 1 . 1 . . . 1 . 2 1 1 . 1 . . . . 2 . . . . . . 2 . 3 . 1 Assault 3 | . . . 1 . . . . . . . 2 . . . . . . . . . . . . . . . . . . Garrison . | . . . . . . . . . . . . . . . . . . . . . . . . . . . . . . Intercept . | . . . . . . . . . . . . . . . . . . . . . . . . . . . . . . Searches Triggered 1 | . . . . . . . . . . . . . . . . . . . . . . . . . . . . 1 . Construction Impeded . | . . . . . . . . . . . . . . . . . . . . . . . . . . . . . . Haulers Reinforced 2 | . . . . . . . . . . . . . . . . . . . . . . . . . 2 . . . . Active Scanning Responses . | . . . . . . . . . . . . . . . . . . . . . . . . . . . . . . Cargo Convoy Interrupts . | . . . . . . . . . . . . . . . . . . . . . . . . . . . . . . Stealth | -11 -10 -10 -9 -9 -9 -8 -8 -8 -8 -7 -7 -7 -5 -5 -5 -5 -4 -4 -4 -4 -4 -3 -3 -3 -2 -2 -2 -1 -1 --------- Run | Jun Mat Sub Mat Min Exi Min Mat Gar Mat Fac Sto Rec Fac Upp Upp War Pro Fac Upp Upp Zhi Pro Res Tes Res Qua Sec Acc Com Distress Signals 19 | . 1 . 2 . . . 4 . 4 . 1 . . . . . . . . . . . . . 2 2 1 1 1 Communications Jammed 39 | . . . . . . . . . . . . . . . . . 2 1 . . . . . 1 . 5 18 2 10 Distress Signals 37 | . . . . . . . . . . . . . . . . . . 1 . . . . . 1 . 5 18 2 10 Times Spotted 471 | . 21 19 41 3 1 6 40 38 19 17 11 . 10 3 10 82 5 5 . 8 . 4 8 4 13 12 20 22 49 Peak Tracking Total 24 | . 4 3 5 3 2 3 6 14 7 9 10 . 5 3 7 24 4 5 . 5 . 2 3 2 4 5 9 5 10 Tactical Retreats 47 | . . 1 . . . . . 2 4 4 1 . 2 2 3 3 2 1 . 3 . 1 . 1 3 3 4 7 . Traps | -11 -10 -10 -9 -9 -9 -8 -8 -8 -8 -7 -7 -7 -5 -5 -5 -5 -4 -4 -4 -4 -4 -3 -3 -3 -2 -2 -2 -1 -1 ------- Run | Jun Mat Sub Mat Min Exi Min Mat Gar Mat Fac Sto Rec Fac Upp Upp War Pro Fac Upp Upp Zhi Pro Res Tes Res Qua Sec Acc Com Traps Triggered 20 | . 2 6 . . . . 2 4 . . 1 . 1 . . . . 1 . . . . . 1 . . . 2 . Indirectly . | . . . . . . . . . . . . . . . . . . . . . . . . . . . . . . Trap Hack Attempts . | . . . . . . . . . . . . . . . . . . . . . . . . . . . . . . Triggered . | . . . . . . . . . . . . . . . . . . . . . . . . . . . . . . Disarmed . | . . . . . . . . . . . . . . . . . . . . . . . . . . . . . . Reprogrammed . | . . . . . . . . . . . . . . . . . . . . . . . . . . . . . . Reused . | . . . . . . . . . . . . . . . . . . . . . . . . . . . . . . Traps Extracted . | . . . . . . . . . . . . . . . . . . . . . . . . . . . . . . Installed . | . . . . . . . . . . . . . . . . . . . . . . . . . . . . . . Triggered 21 | . . . . . . . . . . . . . . 4 . 17 . . . . . . . . . . . . . Machines | -11 -10 -10 -9 -9 -9 -8 -8 -8 -8 -7 -7 -7 -5 -5 -5 -5 -4 -4 -4 -4 -4 -3 -3 -3 -2 -2 -2 -1 -1 ---------- Run | Jun Mat Sub Mat Min Exi Min Mat Gar Mat Fac Sto Rec Fac Upp Upp War Pro Fac Upp Upp Zhi Pro Res Tes Res Qua Sec Acc Com Machines Disabled 34 | . . 2 4 . 1 . . . . 1 1 . . . . 2 . . . 1 . . 2 6 . 5 6 1 2 Max in Single Turn 1 | . . 1 1 . 1 . . . . 1 1 . . . . . . . . 1 . . 1 1 . 1 1 1 1 Garrison Access 8 | . . . . . . . . . 1 . 1 . 1 . . . . 1 . . . . . 1 . . . 3 . Machines Repaired . | . . . . . . . . . . . . . . . . . . . . . . . . . . . . . . Machines Sabotaged . | . . . . . . . . . . . . . . . . . . . . . . . . . . . . . . Overloaded Fab Kills . | . . . . . . . . . . . . . . . . . . . . . . . . . . . . . . Hacking | -11 -10 -10 -9 -9 -9 -8 -8 -8 -8 -7 -7 -7 -5 -5 -5 -5 -4 -4 -4 -4 -4 -3 -3 -3 -2 -2 -2 -1 -1 --------- Run | Jun Mat Sub Mat Min Exi Min Mat Gar Mat Fac Sto Rec Fac Upp Upp War Pro Fac Upp Upp Zhi Pro Res Tes Res Qua Sec Acc Com Machines Accessed 123 | . 6 2 7 . 2 . 7 . 5 10 3 9 9 . . 4 . 5 . 1 8 . 7 3 1 7 7 11 9 Terminals 77 | . 5 . 5 . . . 5 . 4 8 2 4 5 . . . . 3 . . . . 6 1 . 6 7 7 9 Fabricators . | . . . . . . . . . . . . . . . . . . . . . . . . . . . . . . Repair Stations 4 | . . . 1 . . . 1 . . . . . 1 . . . . 1 . . . . . . . . . . . Recycling Units 7 | . 1 . 1 . . . . . . . . 5 . . . . . . . . . . . . . . . . . Scanalyzers 5 | . . . . . . . . . . 1 . . 1 . . . . . . . . . 1 1 . 1 . . . Garrison Access 13 | . . . . . . . 1 . 1 1 1 . 2 . . . . 1 . . . . . 1 1 . . 4 . Total Hacks 299 | . 17 12 16 . 5 . 15 . 9 19 3 18 24 . . 9 . 10 . 1 47 . 15 5 1 18 15 18 22 Successful 170 | . 7 12 3 . 5 . 6 . 2 6 3 9 9 . . 9 . 5 . 1 47 . 4 1 . 10 8 9 14 Failed 128 | . 9 . 13 . . . 9 . 7 13 . 9 15 . . . . 5 . . . . 11 4 1 8 7 9 8 Catastrophic 38 | . 4 . 1 . . . 4 . 5 2 . 3 2 . . . . 3 . . . . 4 3 1 . 2 4 . Database Lockouts 1 | . 1 . . . . . . . . . . . . . . . . . . . . . . . . . . . . Manual 91 | . 14 . 11 . 1 . 9 . 6 8 3 12 7 . . . . 1 . . . . 1 . . . 6 3 9 Terminals 181 | . 15 . 13 . . . 9 . 6 17 2 11 16 . . . . 7 . . . . 14 3 . 17 15 14 22 Fabricators . | . . . . . . . . . . . . . . . . . . . . . . . . . . . . . . Repair Stations 12 | . . . 2 . . . 5 . . . . . 3 . . . . 2 . . . . . . . . . . . Recycling Units 10 | . 2 . 1 . . . . . . . . 7 . . . . . . . . . . . . . . . . . Scanalyzers 6 | . . . . . . . . . . 1 . . 2 . . . . . . . . . 1 1 . 1 . . . Garrison Access 16 | . . . . . . . 1 . 3 1 1 . 3 . . . . 1 . . . . . 1 1 . . 4 . Terminal Hacks 134 | . 5 12 1 . 5 . 1 . 1 5 2 4 4 . . 9 . 2 . 1 47 . 3 . . 9 8 5 10 Record 55 | . . 11 . . 4 . . . . . . . . . . 2 . . . 1 35 . . . . 2 . . . Part Schematic 12 | . 3 . . . . . . . . . . 1 2 . . . . 1 . . 4 . . . . 1 . . . Robot Analysis 8 | . 1 . . . . . . . . . . . . . . . . . . . 4 . . . . 1 . 2 . Prototype ID Bank 12 | . 1 . . . . . . . . . . . . . . 5 . . . . 4 . . . . 1 . . 1 Open Door 9 | . . . . . . . . . . . 1 . . . . 2 . . . . . . . . . . 2 3 1 Level Access Points 1 | . . . . . . . . . . . . . . . . . . . . . . . . . . . . . 1 Branch Access Points 6 | . . . 1 . . . 1 . . 1 . . 1 . . . . . . . . . 1 . . . 1 . . Machine Index 1 | . . . . . . . . . . . . . . . . . . . . . . . . . . . . . 1 Terminal Index 4 | . . . . . . . . . . 1 . . . . . . . 1 . . . . 1 . . . . . 1 Scanalyzer Index 1 | . . . . . . . . . . 1 . . . . . . . . . . . . . . . . . . . Alert Level 1 | . . . . . . . . . . . . . . . . . . . . . . . . . . 1 . . . Unreport Threat 12 | . . . . . . . . . . 2 . 2 1 . . . . . . . . . 1 . . 2 2 . 2 Locate Traps 2 | . . . . . . . . . 1 . . . . . . . . . . . . . . . . . . . 1 Maintenance Status 1 | . . . . . . . . . . . . . . . . . . . . . . . . . . . 1 . . Recall Reinforcements 1 | . . . . . . . . . . . . . . . . . . . . . . . . . . . 1 . . Zone Layout 4 | . . . . . . . . . . . 1 1 . . . . . . . . . . . . . 1 1 . . Derelict Proto ID Bank 2 | . . 1 . . 1 . . . . . . . . . . . . . . . . . . . . . . . . Disengage Seal 2 | . . . . . . . . . . . . . . . . . . . . . . . . . . . . . 2 Fabricator Hacks . | . . . . . . . . . . . . . . . . . . . . . . . . . . . . . . Repair Station Hacks 10 | . . . 2 . . . 4 . . . . . 2 . . . . 2 . . . . . . . . . . . Scan Component 5 | . . . 1 . . . 2 . . . . . 1 . . . . 1 . . . . . . . . . . . Repair 5 | . . . 1 . . . 2 . . . . . 1 . . . . 1 . . . . . . . . . . . Recycling Unit Hacks 1 | . 1 . . . . . . . . . . . . . . . . . . . . . . . . . . . . Retrieve Components 1 | . 1 . . . . . . . . . . . . . . . . . . . . . . . . . . . . Scanalyzer 5 | . . . . . . . . . . 1 . . 2 . . . . . . . . . 1 . . 1 . . . Insert Component 4 | . . . . . . . . . . 1 . . 1 . . . . . . . . . 1 . . 1 . . . Analyze 1 | . . . . . . . . . . . . . 1 . . . . . . . . . . . . . . . . Garrison Access Hacks 9 | . . . . . . . 1 . 1 . 1 . 1 . . . . 1 . . . . . 1 . . . 3 . Unlock Access 1 | . . . . . . . 1 . . . . . . . . . . . . . . . . . . . . . . Seal Access 8 | . . . . . . . . . 1 . 1 . 1 . . . . 1 . . . . . 1 . . . 3 . Unauthorized Hacks 11 | . 1 . . . . . . . . . . 5 . . . . . . . . . . . . . . . 1 4 Terminals 5 | . . . . . . . . . . . . . . . . . . . . . . . . . . . . 1 4 Assimilate 1 | . . . . . . . . . . . . . . . . . . . . . . . . . . . . 1 . Botnet 4 | . . . . . . . . . . . . . . . . . . . . . . . . . . . . . 4 Fabricators . | . . . . . . . . . . . . . . . . . . . . . . . . . . . . . . Repair Stations . | . . . . . . . . . . . . . . . . . . . . . . . . . . . . . . Recycling Units 6 | . 1 . . . . . . . . . . 5 . . . . . . . . . . . . . . . . . Tunnel 6 | . 1 . . . . . . . . . . 5 . . . . . . . . . . . . . . . . . Scanalyzers . | . . . . . . . . . . . . . . . . . . . . . . . . . . . . . . Garrison Access . | . . . . . . . . . . . . . . . . . . . . . . . . . . . . . . Data Cores Recovered 2 | . . . . . . . . . . . . . . . . . . . . . . . . . 1 1 . . . Used . | . . . . . . . . . . . . . . . . . . . . . . . . . . . . . . Hacking Detections 82 | . 5 . 7 . . . 5 . 5 9 2 4 8 . . . . 4 . . . . 7 2 1 5 6 5 7 Full Trace Events 7 | . 1 . 1 . . . 1 . . . . . 1 . . . . . . . . . . . . . 1 . 2 Feedback Events 1 | . . . . . . . . . . . . . . . . . . . . . . . . . . . 1 . . Hackware Fried 1 | . . . . . . . . . . . . . . . . . . . . . . . . . . . 1 . . Feedback Blocked . | . . . . . . . . . . . . . . . . . . . . . . . . . . . . . . Robot Schematics Acquired . | . . . . . . . . . . . . . . . . . . . . . . . . . . . . . . Robots Built . | . . . . . . . . . . . . . . . . . . . . . . . . . . . . . . Authchips . | . . . . . . . . . . . . . . . . . . . . . . . . . . . . . . Time . | . . . . . . . . . . . . . . . . . . . . . . . . . . . . . . Total Robot Build Rating . | . . . . . . . . . . . . . . . . . . . . . . . . . . . . . . Part Schematics Acquired 12 | . 2 . . . . . . . . . . 1 3 . . . . 1 . . 4 . . . . 1 . . . Parts Built . | . . . . . . . . . . . . . . . . . . . . . . . . . . . . . . Authchips . | . . . . . . . . . . . . . . . . . . . . . . . . . . . . . . Time . | . . . . . . . . . . . . . . . . . . . . . . . . . . . . . . Total Part Build Rating . | . . . . . . . . . . . . . . . . . . . . . . . . . . . . . . Parts Repaired 5 | . . . 1 . . . 2 . . . . . 1 . . . . 1 . . . . . . . . . . . Time 196 | . . . 32 . . . 76 . . . . . 44 . . . . 44 . . . . . . . . . . . Parts Recycled . | . . . . . . . . . . . . . . . . . . . . . . . . . . . . . . Recycled Matter . | . . . . . . . . . . . . . . . . . . . . . . . . . . . . . . Retrieved Matter . | . . . . . . . . . . . . . . . . . . . . . . . . . . . . . . Retrieved Components 2 | . 2 . . . . . . . . . . . . . . . . . . . . . . . . . . . . Parts Scanalyzed 1 | . . . . . . . . . . . . . 1 . . . . . . . . . . . . . . . . Part Schematics Acquired 1 | . . . . . . . . . . . . . 1 . . . . . . . . . . . . . . . . Parts Damaged . | . . . . . . . . . . . . . . . . . . . . . . . . . . . . . . Bothacking | -11 -10 -10 -9 -9 -9 -8 -8 -8 -8 -7 -7 -7 -5 -5 -5 -5 -4 -4 -4 -4 -4 -3 -3 -3 -2 -2 -2 -1 -1 ------------ Run | Jun Mat Sub Mat Min Exi Min Mat Gar Mat Fac Sto Rec Fac Upp Upp War Pro Fac Upp Upp Zhi Pro Res Tes Res Qua Sec Acc Com Used RIF Installer . | . . . . . . . . . . . . . . . . . . . . . . . . . . . . . . Robots Hacked . | . . . . . . . . . . . . . . . . . . . . . . . . . . . . . . Non-combat . | . . . . . . . . . . . . . . . . . . . . . . . . . . . . . . Combat . | . . . . . . . . . . . . . . . . . . . . . . . . . . . . . . Robot Hacks Applied . | . . . . . . . . . . . . . . . . . . . . . . . . . . . . . . Relay Couplers Released . | . . . . . . . . . . . . . . . . . . . . . . . . . . . . . . Fabnet Peak Effective % . | . . . . . . . . . . . . . . . . . . . . . . . . . . . . . . Robots Rewired 5 | . . . . . . . . . . . . . . . . 5 . . . . . . . . . . . . . Allies Hacked 5 | . . . . . . . . . . . . . . . . . . . . . . . . . . . . . 5 Hacks Repelled . | . . . . . . . . . . . . . . . . . . . . . . . . . . . . . . Allies | -11 -10 -10 -9 -9 -9 -8 -8 -8 -8 -7 -7 -7 -5 -5 -5 -5 -4 -4 -4 -4 -4 -3 -3 -3 -2 -2 -2 -1 -1 -------- Run | Jun Mat Sub Mat Min Exi Min Mat Gar Mat Fac Sto Rec Fac Upp Upp War Pro Fac Upp Upp Zhi Pro Res Tes Res Qua Sec Acc Com Total Allies 16 | . . . . . . . . . . . 2 . . . . 5 . . . . . . . . . . . 1 8 Largest Group 5 | . . . . . . . . . . . 2 . . . . 5 . . . . . . . . . . . . 5 Highest-Rated Group 599 | . . . . . . . . . . . 62 . . . . 235 . . . . . . . . . . . . 599 Highest-Rated Ally 219 | . . . . . . . . . . . 31 . . . . 65 . . . . . . . . . . . . 219 Total Orders 9 | . . . . . . . . . . . . . . . . 9 . . . . . . . . . . . . . STAY 5 | . . . . . . . . . . . . . . . . 5 . . . . . . . . . . . . . FOLLOW 4 | . . . . . . . . . . . . . . . . 4 . . . . . . . . . . . . . Ally Attacks 147 | . . . . . . . . . . . 11 . . . . 54 . . . . . . . . . . . . 82 Total Damage 7427 | . . . . . . . . . . . 211 . . . . 1715 . . . . . . . . . . . . 5501 Kills 43 | . . . . . . . . . . . 1 . . . . 15 . . . . . . . . . . . . 27 Allies Corrupted 1 | . . . . . . . . . . . . . . . . . . . . . . . . . . . . . 1 Allies Melted 2 | . . . . . . . . . . . . . . . . 2 . . . . . . . . . . . . . Field Lobotomies 5 | . . . . . . . . . . . . . . . . . . . . . . . . . . . . . 5 Intel | -11 -10 -10 -9 -9 -9 -8 -8 -8 -8 -7 -7 -7 -5 -5 -5 -5 -4 -4 -4 -4 -4 -3 -3 -3 -2 -2 -2 -1 -1 ------- Run | Jun Mat Sub Mat Min Exi Min Mat Gar Mat Fac Sto Rec Fac Upp Upp War Pro Fac Upp Upp Zhi Pro Res Tes Res Qua Sec Acc Com Robot Analysis Total 8 | . 1 . . . . . . . . . . . . . . . . . . . 4 . . . . 1 . 2 . Derelict Logs Recovered 11 | . . 3 . 1 . . . . . . . . . 2 1 . 1 . 1 2 . . . . . . . . . Drone Launches . | . . . . . . . . . . . . . . . . . . . . . . . . . . . . . . Drone Recoveries . | . . . . . . . . . . . . . . . . . . . . . . . . . . . . . . Exploration | -11 -10 -10 -9 -9 -9 -8 -8 -8 -8 -7 -7 -7 -5 -5 -5 -5 -4 -4 -4 -4 -4 -3 -3 -3 -2 -2 -2 -1 -1 ------------- Run | Jun Mat Sub Mat Min Exi Min Mat Gar Mat Fac Sto Rec Fac Upp Upp War Pro Fac Upp Upp Zhi Pro Res Tes Res Qua Sec Acc Com Turns Passed 20108 | 250 1522 4972 1824 409 1293 224 1377 589 274 468 123 306 457 322 170 1052 159 413 194 92 125 145 256 505 344 290 268 539 1146 Spaces Moved 20240 | 101 795 2854 617 173 505 66 446 167 489 838 205 584 933 737 397 986 347 926 472 320 203 448 588 729 810 629 841 1505 1529 Core 10 | 9 . . . . . . . 1 . . . . . . . . . . . . . . . . . . . . . Treads 5669 | 84 795 2854 617 173 505 66 446 129 . . . . . . . . . . . . . . . . . . . . . Legs . | . . . . . . . . . . . . . . . . . . . . . . . . . . . . . . Wheels 8 | 8 . . . . . . . . . . . . . . . . . . . . . . . . . . . . . Hover . | . . . . . . . . . . . . . . . . . . . . . . . . . . . . . . Flight 14553 | . . . . . . . . 37 489 838 205 584 933 737 397 986 347 926 472 320 203 448 588 729 810 629 841 1505 1529 Fastest Speed 21 | 50 160 160 160 225 225 230 232 40 40 37 37 37 31 31 31 26 26 26 26 26 26 26 26 25 21 21 21 21 21 Average Speed 71 | 143 160 160 235 225 225 230 232 228 40 37 37 39 32 31 31 30 26 26 26 26 26 26 26 25 23 21 21 21 23 Slowest Speed 1500 | 160 160 240 320 225 230 230 235 1500 40 92 37 92 34 31 31 88 88 26 88 26 26 26 27 26 88 21 21 84 81 Overloaded Moves . | . . . . . . . . . . . . . . . . . . . . . . . . . . . . . . Propulsion Burnouts . | . . . . . . . . . . . . . . . . . . . . . . . . . . . . . . Robots Hopped 102 | . . . . . . . . . 3 9 3 4 5 1 . 1 . 9 1 . . . 8 21 8 1 9 8 11 Cave-ins Triggered 1 | . . . . . . . . . . 1 . . . . . . . . . . . . . . . . . . . Exploration Rate (%) 49 | 7 98 95 62 24 69 20 37 27 46 20 37 90 24 80 67 85 49 24 72 51 62 57 16 56 20 69 56 39 32 Regions Visited 29 Branch Regions 18 Pre-discovered Areas 15 | . 1 2 . 2 1 . . . . . . 5 . . . . . . . 1 3 . . . . . . . . Known Exits Taken 18 | . . . 1 . . . 1 . . 1 . . 1 1 1 1 1 1 1 1 1 1 1 1 1 1 1 . . Unknown Exits Taken 10 | 1 1 1 . 1 1 1 . . 1 . 1 1 . . . . . . . . . . . . . . . 1 . Scrap Searched 14 | . . 5 . 1 . 2 . . . . . . . 2 1 . 1 . . . . 2 . . . . . . . Spaces Dug 319 | . . 5 . . . . . 1 9 32 7 16 11 22 13 54 18 8 17 . . 1 8 9 12 7 6 9 54 Terrain Destroyed 483 | . . 30 62 . . 19 . 1 9 32 7 17 11 22 15 67 18 8 20 . . 1 35 9 12 7 6 9 66 Melee 134 | . . . . . . . . 1 9 17 7 6 10 3 4 21 1 4 . . . 1 6 6 8 6 6 6 12 Projectile 97 | . . 2 . . . . . . . 15 . 11 1 . 11 1 17 4 20 . . . 2 3 4 1 . 3 2 AOE 252 | . . 28 62 . . 19 . . . . . . . 19 . 45 . . . . . . 27 . . . . . 52 Terrain Rammed . | . . . . . . . . . . . . . . . . . . . . . . . . . . . . . . Walls Destroyed . | . . . . . . . . . . . . . . . . . . . . . . . . . . . . . . Machines Disabled . | . . . . . . . . . . . . . . . . . . . . . . . . . . . . . . Actions | -11 -10 -10 -9 -9 -9 -8 -8 -8 -8 -7 -7 -7 -5 -5 -5 -5 -4 -4 -4 -4 -4 -3 -3 -3 -2 -2 -2 -1 -1 --------- Run | Jun Mat Sub Mat Min Exi Min Mat Gar Mat Fac Sto Rec Fac Upp Upp War Pro Fac Upp Upp Zhi Pro Res Tes Res Qua Sec Acc Com Total 24203 | 147 955 3081 848 184 584 97 662 328 547 924 226 622 1059 822 423 1653 394 1054 514 326 265 465 649 996 923 753 885 1671 2146 Wait 2204 | . 41 52 41 . 4 . 88 63 27 23 . 9 54 78 3 558 17 91 11 3 40 10 26 230 78 82 10 108 457 Move 20014 | 100 794 2853 616 172 504 65 446 166 482 818 198 575 923 734 396 983 346 907 469 319 202 447 571 689 796 626 822 1488 1507 Hop 94 | . . . . . . . . . 3 9 3 4 4 1 . 1 . 9 1 . . . 8 18 5 1 9 8 10 Pick Up 179 | 8 26 16 36 2 14 2 13 4 8 5 1 1 5 1 1 9 3 1 . . 1 . 2 7 1 4 4 . 4 Fast Attach 187 | 7 4 4 8 . . 1 10 9 1 4 1 . 13 . . 13 . 9 . 2 7 1 7 11 11 8 11 20 25 Attach 75 | . 3 1 4 2 6 5 3 8 6 5 1 2 3 . . . . 1 4 . 1 . 3 . . 1 3 2 11 Detach 30 | . 2 . 1 . . 1 . 1 2 2 . . 3 . . 1 . 1 4 . 1 . 3 1 . 1 1 2 3 Swap 132 | 2 5 20 28 . 2 1 11 6 1 5 . 7 6 3 7 7 7 3 . . . . . 1 . . 1 . 9 Drop 282 | . 21 12 34 2 11 . 18 21 4 5 2 2 15 1 1 20 3 9 . 1 7 1 7 17 10 10 6 18 24 Fire 571 | 30 59 109 80 5 38 22 72 22 . 21 . 12 1 1 11 9 17 4 21 . . . 5 3 4 2 1 4 18 Melee 346 | . . . . . . . . 3 13 26 11 10 14 3 4 37 1 19 4 1 6 6 17 19 18 18 17 21 78 Ram . | . . . . . . . . . . . . . . . . . . . . . . . . . . . . . . Kick . | . . . . . . . . . . . . . . . . . . . . . . . . . . . . . . Crush 7 | . . . . 1 5 . 1 . . . . . . . . . . . . . . . . . . . . . . Escape Stasis 53 | . . . . . . . . 25 . 1 9 . 18 . . . . . . . . . . . . . . . . Rewire 15 | . . . . . . . . . . . . . . . . 15 . . . . . . . . . . . . . Trap . | . . . . . . . . . . . . . . . . . . . . . . . . . . . . . . Miscellaneous 14 | . . 14 . . . . . . . . . . . . . . . . . . . . . . . . . . . Route ------- -11/Junkyard -10/Materials (discovered 6 exits: *Mat x3 / [*Min x2] / *Sub) -10/Subcaves (discovered 3 exits: *Mat / *Mat / *Rec) -9/Materials (discovered 2 exits: *Mat / *Min) -9/Mines (discovered 3 exits: *Mat / *Exi / [*Zio]) -9/Exiles -8/Mines -8/Materials (discovered 2 exits: *Fac / Gar) -8/Garrison -8/Materials -7/Factory (discovered 5 exits: [*Fac] / *Sto x2 / Low x2) -7/Storage -7/Recycling -5/Factory (discovered 3 exits: *Fac / *Upp x2) -5/Upper Caves -5/Upper Caves -5/Warlord -4/Proximity Caves -4/Factory (discovered 3 exits: *Res / *Upp / Arm) -4/Upper Caves -4/Upper Caves (discovered 2 exits: *Res / *Zhi) -4/Zhirov -3/Proximity Caves -3/Research (discovered 2 exits: *Tes x2) -3/Testing -2/Research (discovered 2 exits: *Acc / *Qua) -2/Quarantine -2/Section 7 -1/Access -1/Command (discovered 2 exits: *Sur x2) To Fleet Rendezvous History --------- Turn | Location | Event 6 | -11/Junkyard | Discovered new exit (range 15) 251 | -11/Junkyard | Entered Materials 308 | -10/Materials | Build established: Mutant 381 | -10/Materials | Discovered new exit (range 5) 675 | -10/Materials | Discovered new exit (range 15) 749 | -10/Materials | Discovered new exit (range 10) 1109 | -10/Materials | Discovered new exit (range 13) 1358 | -10/Materials | Discovered new exit (range 5) 1389 | -10/Materials | Central database locked down 1712 | -10/Materials | Discovered new exit (range 6) 1773 | -10/Materials | Entered Subcaves 1945 | -10/Subcaves | Shifting Twisted Machinery released Riot Gun 2089 | -10/Subcaves | Shifting Twisted Machinery released Battle Cannon 2647 | -10/Subcaves | Discovered new exit (range 12) 2809 | -10/Subcaves | A swath of the cavern ceiling suddenly collapsed 2959 | -10/Subcaves | Visited 4L-MR0's lab 3062 | -10/Subcaves | Discovered new exit (range 9) 3278 | -10/Subcaves | Discovered new exit (range 11) 3638 | -10/Subcaves | Shifting Twisted Machinery released Sub. Power Source 3638 | -10/Subcaves | Shifting Twisted Machinery released Slug Cannon 3923 | -10/Subcaves | Core integrity fell below 50% 4278 | -10/Subcaves | Shifting Twisted Machinery released Sub. Beam Cannon 4308 | -10/Subcaves | Shifting Twisted Machinery released Battle Rifle 4329 | -10/Subcaves | Learned location of Zion (-7) 4439 | -10/Subcaves | Visited Clippyterm 4465 | -10/Subcaves | Learned Materials trap positions 5025 | -10/Subcaves | A swath of the cavern ceiling suddenly collapsed 5509 | -10/Subcaves | Learned Materials terminal intel 5717 | -10/Subcaves | Met a Zionite searching for "candidates" 6533 | -10/Subcaves | Found Flightbrick 6745 | -10/Subcaves | Entered Materials 6745 | -9/Materials | Evolved 2 slots: Propulsion x1, Utility x1 6746 | -9/Materials | Loaded intel: 16 trap records 6747 | -9/Materials | Loaded intel: 12 terminal locations 7688 | -9/Materials | Discovered new exit (range 3) 7850 | -9/Materials | Discovered new exit (range 13) 7968 | -9/Materials | Build established: Scavenger-Mutant 8024 | -9/Materials | Identified exit to Mines 8345 | -9/Materials | First assault squad dispatched 8419 | -9/Materials | Repaired Med. Armor Plating 8523 | -9/Materials | Build established: Mutant 8569 | -9/Materials | Entered Mines 8588 | -9/Mines | A Derelict revealed a hidden shortcut to a safe place 8675 | -9/Mines | Found a damaged Exp. Sensor Array with a note attached 8683 | -9/Mines | Found Prototype Device 8761 | -9/Mines | Discovered new exit (range 5) 8922 | -9/Mines | Learned location of Storage (-7) 8969 | -9/Mines | Deemed a non-threat by the Exiles lab entrance 8969 | -9/Mines | Discovered new exit (range 5) 8978 | -9/Mines | Entered Exiles 9040 | -9/Exiles | Met 8R-AWN 9072 | -9/Exiles | Met EX-HEX 9175 | -9/Exiles | Met EX-DEC 9281 | -9/Exiles | Discovered new exit (range 14) 9759 | -9/Exiles | Met EX-BIN 9790 | -9/Exiles | Aligned with FarCom system 9792 | -9/Exiles | Given EX-Vault access code 9846 | -9/Exiles | Opened EX-Vault 9860 | -9/Exiles | Found Field Lobotomy Kit 9868 | -9/Exiles | Found Superbattery 9883 | -9/Exiles | Found AWS/Thermal 9931 | -9/Exiles | Warned to stay clear of 0b10 Research branches 9941 | -9/Exiles | Exiles lab attacked by MAIN.C 10104 | -9/Exiles | Attacked by the Exiles 10236 | -9/Exiles | Destroyed 8R-AWN 10261 | -9/Exiles | Lost 3 parts (1n2u) 10271 | -9/Exiles | Stole three prototypes: Superbattery, AWS/Thermal, Field Lobotomy Kit 10271 | -9/Exiles | Entered Mines 10279 | -8/Mines | Core integrity fell below 50% 10309 | -8/Mines | Lost 4 parts (1n1u2w) 10470 | -8/Mines | Discovered new exit (range 12) 10495 | -8/Mines | Entered Materials 10495 | -8/Materials | Evolved 2 slots: Propulsion x1, Utility x1 10929 | -8/Materials | Repaired Adv. Treads 10969 | -8/Materials | Repaired Adv. Treads 11007 | -8/Materials | Build established: Scavenger-Mutant 11417 | -8/Materials | Discovered new exit (range 5) 11872 | -8/Materials | Identified exit to Garrison 11872 | -8/Materials | Entered Garrison 12006 | -8/Garrison | Core integrity fell below 50% 12026 | -8/Garrison | Lost 8 parts (1p4n3u) 12320 | -8/Garrison | Triggered checkpoint 12367 | -8/Garrison | Assembled breached garrison interior 12412 | -8/Garrison | Core integrity fell below 20% 12420 | -8/Garrison | Attached Flightbrick, gained temporary slots: Utility x3 12437 | -8/Garrison | Destroyed 9 combat bots 12458 | -8/Garrison | Discovered new exit (range 8) 12461 | -8/Garrison | Entered Materials 12686 | -8/Materials | Discovered new exit (range 16) 12735 | -8/Materials | Entered Factory 12735 | -7/Factory | Evolved 2 slots: Power x1, Propulsion x1 12828 | -7/Factory | Discovered new exit (range 6) 12835 | -7/Factory | Discovered new exit (range 7) 12885 | -7/Factory | Identified exit to Storage 12885 | -7/Factory | Identified exit to Lower Caves 12911 | -7/Factory | Identified Exp. Sensor Array 13111 | -7/Factory | Build established: Hacker-Mutant 13165 | -7/Factory | Crushed by falling debris 13166 | -7/Factory | System corruption reached 10% 13196 | -7/Factory | Lost 4 parts (1p3u) 13203 | -7/Factory | Entered Storage 13206 | -7/Storage | Met a pair of Derelict thieves 13317 | -7/Storage | Discovered new exit (range 17) 13324 | -7/Storage | Used back door to open Recycling access 13326 | -7/Storage | Entered Recycling 13360 | -7/Recycling | Found Scrap Engine 13460 | -7/Recycling | Build established: Mutant 13462 | -7/Recycling | Discovered new exit (range 5) 13632 | -7/Recycling | Entered Factory 13632 | -5/Factory | Evolved 4 slots: Power x1, Propulsion x2, Utility x1 13717 | -5/Factory | Repaired Transmission Jammer 13798 | -5/Factory | Identified exit to Upper Caves 13990 | -5/Factory | Discovered new exit (range 6) 14089 | -5/Factory | Entered Upper Caves 14112 | -5/Upper Caves | Build established: Hacker-Sprinter 14234 | -5/Upper Caves | Learned location of 1 exit from Proximity Caves 14247 | -5/Upper Caves | Encountered a Warlord checkpoint 14264 | -5/Upper Caves | Learned location of 1 exit from Factory 14312 | -5/Upper Caves | Discovered new exit (range 13) 14401 | -5/Upper Caves | Identified exit to Upper Caves 14411 | -5/Upper Caves | Entered another Upper Caves area 14415 | -5/Upper Caves | Spotted B-75 Beast 14448 | -5/Upper Caves | Learned 8 Factory zone layouts 14580 | -5/Upper Caves | Discovered new exit (range 7) 14581 | -5/Upper Caves | Encountered a Warlord checkpoint 14581 | -5/Upper Caves | Identified exit to Warlord 14581 | -5/Upper Caves | Entered Warlord 14798 | -5/Warlord | Met Warlord 14823 | -5/Warlord | Warlord's base attacked by MAIN.C 14854 | -5/Warlord | Found Prototype Device 14854 | -5/Warlord | Identified Thermal Barrier 14860 | -5/Warlord | Found Prototype Device 14860 | -5/Warlord | Identified Exp. Phase Shifter 14894 | -5/Warlord | Found Prototype Piercing Weapon 14895 | -5/Warlord | Found Prototype Piercing Weapon 15164 | -5/Warlord | Spotted Executioner 15173 | -5/Warlord | Warlord forces counterattacked 15201 | -5/Warlord | Found Prototype Processor 15201 | -5/Warlord | Identified Exp. Core Analyzer 15203 | -5/Warlord | Found Prototype Processor 15203 | -5/Warlord | Identified Exp. Targeting Computer 15295 | -5/Warlord | Spotted Striker 15379 | -5/Warlord | Spotted Striker 15446 | -5/Warlord | Opened side exit 15498 | -5/Warlord | Warlord base infiltrated, sounded retreat 15622 | -5/Warlord | Spotted B-86 Titan 15623 | -5/Warlord | Spotted Executioner 15627 | -5/Warlord | Spotted Striker 15631 | -5/Warlord | Discovered new exit (range 12) 15633 | -5/Warlord | Identified exit to Proximity Caves 15633 | -5/Warlord | Entered Proximity Caves 15634 | -4/Proximity Caves | Identified exit to Factory 15674 | -4/Proximity Caves | Build established: Sprinter 15792 | -4/Proximity Caves | Entered Factory 15792 | -4/Factory | Evolved 2 slots: Utility x2 15793 | -4/Factory | Identified exit to Armory 15797 | -4/Factory | Discovered new exit (range 9) 15802 | -4/Factory | Identified exit to Research 15859 | -4/Factory | Repaired Mic. Nuclear Core 15879 | -4/Factory | Discovered new exit (range 15) 15882 | -4/Factory | Identified exit to Upper Caves 16205 | -4/Factory | Entered Upper Caves 16235 | -4/Upper Caves | Learned Research garrison access intel 16352 | -4/Upper Caves | Discovered new exit (range 14) 16388 | -4/Upper Caves | Identified exit to Upper Caves 16399 | -4/Upper Caves | Entered another Upper Caves area 16402 | -4/Upper Caves | Discovered exit to Research (range 7) 16417 | -4/Upper Caves | Learned Research emergency access door positions 16437 | -4/Upper Caves | Found Alien Artifact 16437 | -4/Upper Caves | Identified Dimensional Node Initializer 16437 | -4/Upper Caves | Initialized slip node 16480 | -4/Upper Caves | Spotted ZG-5RB(f) 16481 | -4/Upper Caves | Spotted 12-HGX(f) 16481 | -4/Upper Caves | Spotted IJ-QX8(f) 16482 | -4/Upper Caves | Encountered a Master Thief 16482 | -4/Upper Caves | Encountered a Master Thief 16482 | -4/Upper Caves | Encountered a Master Thief 16482 | -4/Upper Caves | Spotted RA-YW0(f) 16483 | -4/Upper Caves | Encountered a Master Thief 16483 | -4/Upper Caves | Spotted GA-Y19(f) 16484 | -4/Upper Caves | Encountered a Master Thief 16490 | -4/Upper Caves | Discovered new exit (range 5) 16491 | -4/Upper Caves | Identified exit to Zhirov 16491 | -4/Upper Caves | Entered Zhirov 16492 | -4/Zhirov | Discovered new exit (range 3) 16497 | -4/Zhirov | Met Zhirov 16502 | -4/Zhirov | Learned location of Quarantine (-2) 16514 | -4/Zhirov | Zhirov requested help retrieving the SGEMP Prototype 16518 | -4/Zhirov | Found Alien Artifact 16518 | -4/Zhirov | Identified Integrated Dissipator 16518 | -4/Zhirov | Installed Integrated Dissipator, increased core heat dissipation (+20) 16591 | -4/Zhirov | Build established: Infiltrator-Sprinter 16593 | -4/Zhirov | Identified Vortex Lance (x2) 16602 | -4/Zhirov | Found Alien Artifact 16612 | -4/Zhirov | Identified exit to Proximity Caves 16616 | -4/Zhirov | Entered Proximity Caves 16727 | -3/Proximity Caves | Discovered exit to Research (range 9) 16761 | -3/Proximity Caves | Entered Research 16761 | -3/Research | Evolved 2 slots: Propulsion x1, Utility x1 16763 | -3/Research | Loaded intel: 3 garrison access locations 16766 | -3/Research | Identified Transdimensional Reconstructor 16936 | -3/Research | Spotted B-86 Titan 16936 | -3/Research | Identified exit to Testing 17017 | -3/Research | Entered Testing 17031 | -3/Testing | Found Prototype Hackware 17073 | -3/Testing | Found Prototype Device 17073 | -3/Testing | Identified Exp. Hardlight Generator 17079 | -3/Testing | Discovered new exit (range 15) 17098 | -3/Testing | Found Prototype Energy Cannon 17098 | -3/Testing | Identified Disintegrator 17150 | -3/Testing | Found Prototype Device 17150 | -3/Testing | Identified 2N-1CE's Frost Array 17282 | -3/Testing | Identified exit to Research 17431 | -3/Testing | Found Prototype Energy Cannon 17431 | -3/Testing | Identified Cld. Nova Cannon 17517 | -3/Testing | Build established: Hacker-Ninja 17522 | -3/Testing | Entered Research 17522 | -2/Research | Warlord forces began assault on 0b10 17522 | -2/Research | Evolved 2 slots: Power x1, Propulsion x1 17523 | -2/Research | Identified exit to Quarantine 17627 | -2/Research | Met up with Warlord 17632 | -2/Research | Research machine network offline 17801 | -2/Research | Discovered new exit (range 12) 17855 | -2/Research | Spotted B-90 Cyclops 17865 | -2/Research | Borebot progress halted 17866 | -2/Research | Entered Quarantine 17869 | -2/Quarantine | Cryocooling Duct disabled 17884 | -2/Quarantine | Ambient heat levels rising (+20) 17884 | -2/Quarantine | Non-combat units ordered to evacuate 17886 | -2/Quarantine | Found Alien Artifact 17886 | -2/Quarantine | Identified Core Reset Matrix 17886 | -2/Quarantine | Used Core Reset Matrix 17890 | -2/Quarantine | Detected hypermatrix surge 17890 | -2/Quarantine | Sensed 14 artifacts in vicinity 17928 | -2/Quarantine | Build established: Hacker-Sprinter 17996 | -2/Quarantine | Found Sigix Broadsword 18036 | -2/Quarantine | Found Subatomic Replicator 18056 | -2/Quarantine | Found Dimensional Node Initializer 18056 | -2/Quarantine | Initialized slip node 18059 | -2/Quarantine | Found Hpw. Transdimensional Reconstructor 18078 | -2/Quarantine | Identified System Mapper 18109 | -2/Quarantine | Spotted Fortress 18123 | -2/Quarantine | Discovered new exit (range 6) 18124 | -2/Quarantine | Identified exit to Section 7 18156 | -2/Quarantine | Entered Section 7 18157 | -2/Section 7 | Sensed 20 artifacts in vicinity 18161 | -2/Section 7 | Found Integrated Dissipator 18161 | -2/Section 7 | Installed Integrated Dissipator, increased core heat dissipation (+20) 18210 | -2/Section 7 | Found Integrated Mediator 18210 | -2/Section 7 | Installed Integrated Mediator, increased core attachment efficiency. 18245 | -2/Section 7 | Spotted B-90 Cyclops 18255 | -2/Section 7 | Found Exp. Force Field 18289 | -2/Section 7 | Used Subatomic Replicator to replicate Integrity Redistributor 18290 | -2/Section 7 | Found Integrity Redistributor 18290 | -2/Section 7 | Used Integrity Redistributor, redistributed integrity from core (-279) 18312 | -2/Section 7 | Adv. Hacking Suite fried by hacking feedback 18332 | -2/Section 7 | Spotted B-99 Colossus 18346 | -2/Section 7 | Found Integrated Dissipator 18346 | -2/Section 7 | Installed Integrated Dissipator, increased core heat dissipation (+20) 18354 | -2/Section 7 | Found LRC Insulator 18354 | -2/Section 7 | Installed LRC Insulator, gained EM resistance (25) 18357 | -2/Section 7 | Found LRC Boosters 18357 | -2/Section 7 | Installed LRC Boosters, increased mass support (+10) 18358 | -2/Section 7 | Found LRC Matter Compressor 18358 | -2/Section 7 | Installed LRC Matter Compressor, increased matter storage capacity (+125) 18392 | -2/Section 7 | Spotted Alpha 7 18392 | -2/Section 7 | Spotted Alpha 7 18396 | -2/Section 7 | Spotted S7 Guard 18405 | -2/Section 7 | Found Integrated Reactor 18405 | -2/Section 7 | Installed Integrated Reactor, increased core energy generation (+10) 18423 | -2/Section 7 | Discovered new exit (range 6) 18424 | -2/Section 7 | Identified exit to Access 18424 | -2/Section 7 | Entered Access 18424 | -1/Access | Evolved 2 slots: Weapon x2 18478 | -1/Access | Spotted B-99 Colossus 18705 | -1/Access | Build established: Alien-Sprinter 18710 | -1/Access | Spotted B-99 Colossus 18751 | -1/Access | Spotted B-99 Colossus 18924 | -1/Access | Search patrols dispatched 18961 | -1/Access | Discovered new exit (range 7) 18963 | -1/Access | Entered Command 19160 | -1/Command | Assimilated H-88 Terminator with FLK Orb 19289 | -1/Command | Spotted B-99 Colossus 19327 | -1/Command | Found Unknown Device 19327 | -1/Command | Identified Adv. Force Booster 19349 | -1/Command | Spotted M Guard 19349 | -1/Command | Spotted M Guard 19349 | -1/Command | Spotted Combat Programmer 19363 | -1/Command | Spotted Combat Programmer 19369 | -1/Command | Assimilated Combat Programmer with FLK Orb 19372 | -1/Command | Assimilated Combat Programmer with FLK Orb 19387 | -1/Command | Allies destroyed M Guard 19389 | -1/Command | Allies destroyed M Guard 19526 | -1/Command | Assimilated B-99 Colossus with FLK Orb 19720 | -1/Command | Disengaged cave seal 19743 | -1/Command | Disengaged cave seal 19749 | -1/Command | Found Unknown Protection 19749 | -1/Command | Identified Powered Armor 19759 | -1/Command | All MAIN.C guards destroyed 19762 | -1/Command | Spotted Striker 19777 | -1/Command | Spotted Alpha 7 19808 | -1/Command | Welcomed Warlord to Command 19906 | -1/Command | Warlord commented on Warlord statues 19941 | -1/Command | Found Corrupted Prototype Launcher 19984 | -1/Command | Met MAIN.C 19990 | -1/Command | 0b10 Conduit disabled 19993 | -1/Command | Warlord shut down involuntarily 20021 | -1/Command | MAIN.C activated Command garrisons 20051 | -1/Command | Used Integrity Redistributor, redistributed integrity from core (-294) 20069 | -1/Command | Identified exit to Surface 20073 | -1/Command | Spotted B-99 Colossus 20074 | -1/Command | Assimilated B-99 Colossus with FLK Orb 20080 | -1/Command | Lost 10 parts (3p1n4u2w) 20083 | -1/Command | Identified Adv. Micro-nuke Launcher 20092 | -1/Command | P-80 Master assimilated allied Colossus 10b 20105 | -1/Command | System corruption reached 10% 20109 | *** | Heading to fleet! Last Messages --------------- 20099_ Slug penetrates Wall. 20099_ Colossus 10b reactivates. 20099_ Penetrated by Slug. 20099_ Slug penetrates Wall. 20100_ M-36 Artificer repairs Gamma Rifle. 20102_ The unstable cave ceiling collapses. 20103_ P-80 Master resets Colossus 10b, system corruption cleaned. 20103_ Penetrated by Slug. 20103_ Slug penetrates Wall. 20103_ Penetrated by Slug. 20103_ Slug penetrates Wall. 20106_ Adv. Target Analyzer blasted off. 20106_ Knocked back. 20106_ Phase Shifter destroyed. 20106_ Slug penetrates Wall. 20107_ Acquired 9 matter. 20107_ Vortex Lance destroyed. 20107_ Knocked back. 20108_ Acquired 8 matter. 20108_ Acquired 3 matter. Map ----- +----------------------------------------------------+ | ???????# #?######???????????????????????????????? | | +####### ### #??????????????????????????????## | | T" #?###?##+???#?????????????????"" | | "" #?# #????????????????? | | ?####### #### #?# #????????????????? | | ?#######+##### ##?# #????????????"""""""" | | ?# # #??# " "" #???????????#" " | | ?# + #??# "R"" #???????????#"" """" | | ?# # #??# """" #???????????#"" """" | | ?# # #??? ????????????# " """" | | ?# # #?## ??????????????# " | | ?# # ###"#"##+############????# " | | ?# %" #????#""""""" | | ?######## #### ! #????# | | ????????###??#%!%= #????# | | ?????????????#%=!! #????# | | ???????? ????#!%%*! %% ###### | | ????? ??""???# [!!%! = ! %% | | ????? """??# % % "" | | ??????! T" ?# [%! ## " | | ????# """ # [%= ###+########### """"" | | ????# "" # ^ +????????????# " """ | | ????# !%! = #????????????# """ | | ????#* == ! ######????????????######### | | ????#### % # #?????????????????????? | | ??? ! ## @ #?????????????????????? | | ??###### #%! !! #?????????????????????? | | ???????# ![ #?????????????????????? | | ???????# BB########?????????????????????? | | ???????# # # #????????????????????????????? | | ???????# # ####????????????????????????????? | | ???????##### #####???????????????????????????????? | | ?????????? ????????????????????????????????????? | | ?????????####????????????????????????????????????? | | ?????????????????????????????????????????????????? | | ?????????????????????????????????????????????????? | | ?????????????????????????????????????????????????? | | ?????????????????????????????????????????????????? | | ?????????????????????????????????????????????????? | | ?????????????????????????????????????????????????? | | ?????????????????????????????????????????????????? | | ?????????????????????????????????????????????????? | | ?????????????????????????????????????????????????? | | ?????????????????????????????????????????????????? | | ?????????????????????????????????????????????????? | | ?????????????????????????????????????????????????? | | ?????????????????????????????????????????????????? | | ?????????????????????????????????????????????????? | | ?????????????????????????????????????????????????? | | ?????????????????????????????????????????????????? | +----------------------------------------------------+ Best States ------------- Heat Dissipation 212 Coolant Potential 65 Energy Generation 65 Energy Capacity 1600 Matter Stores 425 Matter Capacity 425 Sight Range 23 Robot Scan Range 20 Terrain Scan Density 10 Jamming Range 16 Cloak Strength 4 Armor Coverage 800 Resistance: EM 25 Core Shielding 20 Weapon Shielding 90 Phase Shifting 5 Evasion (%) 82 Targeting Accuracy 14 Target Analysis 12 Core Analysis 6 Recoil Reduction 4 Kinecelleration 40 Force Boost 40 Offensive Hacking 48 Defensive Hacking 26 Item Schematics ----------------- Exp. Force Field | -2/Quarantine | Hacked Robot Schematics ------------------ None Fabricated ------------ Nothing Alien Tech Used ----------------- Dimensional Node Initializer Integrated Dissipator Core Reset Matrix Sigix Broadsword Integrated Mediator Subatomic Replicator Integrity Redistributor LRC Insulator LRC Boosters LRC Matter Compressor Integrated Reactor Achievements -------------- None Challenges ------------ None Game ------ Seed SplicePhaseProtection Manual? 0 Play Time 04:56:58 Cumulative 562.6 hours Start 2023.06.25 @ 22:14:53 End 2023.07.22 @ 19:02:34 Sessions 6 Manual Loads 0 Difficulty Rogue Special Mode None Game No. 383 Rogue 383 Adventurer 0 Explorer 0 Win Type 2 Total 18 Types 9/3/2/0/0/1/2/1/0 Lore% 82 Gallery% 91 Achievement% 79 Wizard Run 0 Options --------- ASCII 0 Keyboard 0 Movement Numpad Keybinds 0 Fullscreen 2 Font 24/Terminus Map View 76x50 Tactical HUD 1 Map Filters NONE Filters NONE Steam 1 RUN: 28c1de26-17cc-4c4a-94a9-4e710f80c59e